fUST/lending_fUST_20240523
["ID","MTS","AMOUNT","RATE_DAILY","PERIOD"]
[327785104,1716477048268,-1025.755629,0.00024657,2]
[327785105,1716477048278,-821.92,0.00024657,2]
[327785106,1716477048288,-1179.1,0.00024657,2]
[327785107,1716477048298,-1025.755629,0.00024657,2]
[327785108,1716477048307,-1025.755629,0.00024657,2]
[327785110,1716477048317,-1025.755629,0.00024657,2]
[327785111,1716477048326,-1025.755629,0.00024657,2]
[327785112,1716477048336,-1025.755629,0.00024657,2]
[327785113,1716477048345,-1025.755621,0.00024657,2]
[327785114,1716477048354,-771.75,0.00024657,2]
[327785115,1716477048364,-500.0,0.00024657,2]
[327785116,1716477048374,-500.0,0.00024657,2]
[327785118,1716477048383,-500.0,0.00024657,2]
[327785119,1716477048392,-500.0,0.00024657,2]
[327785120,1716477048402,-500.0,0.00024657,2]
[327785121,1716477048412,-500.0,0.00024657,2]
[327785122,1716477048422,-500.0,0.00024657,2]
[327785123,1716477048431,-3003.74,0.00024657,2]
[327785124,1716477048441,-165.07634211,0.00024657,2]
[327785126,1716477048450,-783.87,0.00024657,2]
[327785127,1716477048459,-2771.61,0.00024657,2]
[327785128,1716477048469,-500.0,0.00024657,2]
[327785129,1716477048478,-500.0,0.00024657,2]
[327785130,1716477048488,-574.72,0.00024657,2]
[327785131,1716477048497,-500.0,0.00024657,2]
[327785132,1716477048506,-500.0,0.00024657,2]
[327785134,1716477048516,-500.0,0.00024657,2]
[327785135,1716477048525,-960.93,0.00024657,2]
[327785136,1716477048535,-501.86295354,0.00024657,2]
[327785137,1716477048545,-151.0,0.00024657,2]
[327785138,1716477048559,-151.0,0.00024657,2]
[327785139,1716477048569,-151.645127,0.00024657,2]
[327785140,1716477048580,-500.0,0.00024657,2]
[327785142,1716477048591,-500.0,0.00024657,2]
[327785143,1716477048599,-1000.0,0.00024657,2]
[327785144,1716477048609,-500.0,0.00024657,2]
[327785145,1716477048618,-500.0,0.00024657,2]
[327785146,1716477048628,-644.54,0.00024657,2]
[327785147,1716477048639,-500.0,0.00024657,2]
[327785148,1716477048649,-500.0,0.00024657,2]
[327785149,1716477048660,-500.0,0.00024657,2]
[327785151,1716477048670,-735.46,0.00024657,2]
[327785152,1716477048679,-500.0,0.00024657,2]
[327785153,1716477048689,-506.38231397,0.00024657,2]
[327785154,1716477048699,-500.0,0.00024657,2]
[327785155,1716477048708,-500.0,0.00024657,2]
[327785156,1716477048718,-500.0,0.00024657,2]
[327785157,1716477048728,-500.0,0.00024657,2]
[327785159,1716477048738,-500.0,0.00024657,2]
[327785160,1716477048747,-748.49,0.00024657,2]
[327785161,1716477048757,-500.0,0.00024657,2]
[327785162,1716477048767,-500.0,0.00024657,2]
[327785163,1716477048777,-639.37,0.00024657,2]
[327785164,1716477048786,-500.0,0.00024657,2]
[327785166,1716477048796,-500.0,0.00024657,2]
[327785167,1716477048805,-2209.6,0.00024657,2]
[327785168,1716477048814,-722.73,0.00024657,2]
[327785169,1716477048823,-722.73,0.00024657,3]
[327785170,1716477048833,-722.73,0.00024657,4]
[327785171,1716477048843,-722.73,0.00024657,5]
[327785172,1716477048852,-722.73,0.00024657,6]
[327785173,1716477048862,-722.73,0.00024657,7]
[327785175,1716477048871,-722.73,0.00024657,8]
[327785176,1716477048881,-722.73,0.00024657,9]
[327785177,1716477048891,-722.73,0.00024657,10]
[327785178,1716477048901,-722.73,0.00024657,11]
[327785179,1716477048912,-529.38,0.00024657,2]
[327785180,1716477048921,-1809.02,0.00024657,2]
[327785181,1716477048930,-500.0,0.00024657,2]
[327785183,1716477048939,-722.73,0.00024657,12]
[327785184,1716477048948,-722.73,0.00024657,13]
[327785185,1716477048958,-722.73,0.00024657,14]
[327785186,1716477048967,-722.73,0.00024657,15]
[327785187,1716477048977,-722.73,0.00024657,16]
[327785188,1716477048987,-722.73,0.00024657,17]
[327785189,1716477048996,-722.73,0.00024657,18]
[327785191,1716477049005,-722.73,0.00024657,19]
[327785192,1716477049015,-722.73,0.00024657,20]
[327785193,1716477049024,-722.73,0.00024657,21]
[327785194,1716477049034,-505.40065869,0.00024657,2]
[327785195,1716477049043,-722.73,0.00024657,21]
[327785196,1716477049053,-722.73,0.00024657,21]
[327785197,1716477049063,-722.73,0.00024657,21]
[327785199,1716477049072,-722.9029004,0.00024657,21]
[327785200,1716477049082,-531.35724898,0.00024657,2]
[327785201,1716477049092,-743.86,0.00024657,2]
[327785202,1716477049102,-500.0,0.00024657,2]
[327785203,1716477049112,-500.0,0.00024657,2]
[327785204,1716477049122,-500.0,0.00024657,2]
[327785205,1716477049131,-500.0,0.00024657,2]
[327785207,1716477049142,-151.0,0.00024657,2]
[327785208,1716477049151,-500.0,0.00024657,2]
[327785209,1716477049164,-500.0,0.00024657,2]
[327785210,1716477049174,-151.0,0.00024657,2]
[327785211,1716477049183,-151.0,0.00024657,2]
[327785212,1716477049193,-500.0,0.00024657,2]
[327785213,1716477049203,-1041.93,0.00024657,2]
[327785215,1716477049212,-201.84047617,0.00024657,2]
[327785216,1716477049222,-886.44,0.00024657,2]
[327785217,1716477049232,-151.0,0.00024657,2]
[327785218,1716477049241,-1706.29,0.00024657,2]
[327785219,1716477049251,-531.12,0.00024657,2]
[327785220,1716477049260,-500.0,0.00024657,2]
[327785221,1716477049270,-151.0,0.00024657,2]
[327785223,1716477049279,-151.0,0.00024657,2]
[327785224,1716477049289,-389.53664061,0.00024657,2]
[327785225,1716477049298,-151.0,0.00024657,2]
[327785226,1716477049308,-151.0,0.00024657,2]
[327785227,1716477049317,-151.0,0.00024657,2]
[327785228,1716477049327,-151.0,0.00024657,2]
[327785229,1716477049337,-247.016976,0.00024657,2]
[327785230,1716477049346,-500.0,0.00024657,2]
[327785232,1716477049356,-500.0,0.00024657,2]
[327785233,1716477049366,-500.0,0.00024657,2]
[327785234,1716477049375,-500.0,0.00024657,2]
[327785235,1716477049385,-500.0,0.00024657,2]
[327785236,1716477049394,-151.0,0.00024657,2]
[327785237,1716477049405,-255.327794,0.00024657,2]
[327785238,1716477049415,-500.0,0.00024657,2]
[327785239,1716477049424,-500.0,0.00024657,2]
[327785240,1716477049433,-3879.64,0.00024657,2]
[327785241,1716477049442,-863.24,0.00024657,2]
[327785242,1716477049451,-469.21288216,0.00024657,2]
[327785243,1716477049461,-500.0,0.00024657,2]
[327785244,1716477049471,-1893.87,0.00024657,2]
[327785245,1716477049480,-766.32,0.00024657,2]
[327785246,1716477049489,-1073.06,0.00024657,2]
[327785247,1716477049499,-5019.87,0.00024657,2]
[327785248,1716477049508,-510.32495836,0.00024657,2]
[327785249,1716477049517,-896.64,0.00024657,2]
[327785250,1716477049527,-500.0,0.00024657,2]
[327785251,1716477049536,-563.8442,0.00024657,2]
[327785252,1716477049547,-563.8442,0.00024657,2]
[327785253,1716477049561,-563.8442,0.00024657,2]
[327785254,1716477049570,-563.8442,0.00024657,2]
[327785255,1716477049580,-563.8442,0.00024657,2]
[327785256,1716477049590,-563.8442,0.00024657,2]
[327785257,1716477049600,-563.8442,0.00024657,2]
[327785258,1716477049609,-563.8442,0.00024657,2]
[327785259,1716477049618,-563.8442,0.00024657,2]
[327785260,1716477049627,-500.0,0.00024657,2]
[327785261,1716477049639,-563.8442,0.00024657,2]
[327785262,1716477049649,-563.8442,0.00024657,2]
[327785263,1716477049659,-563.8442,0.00024657,2]
[327785264,1716477049668,-563.8442,0.00024657,2]
[327785265,1716477049678,-500.0,0.00024657,2]
[327785266,1716477049687,-563.8442,0.00024657,2]
[327785267,1716477049696,-563.8442,0.00024657,2]
[327785268,1716477049705,-563.8442,0.00024657,2]
[327785269,1716477049714,-563.8442,0.00024657,2]
[327785270,1716477049724,-563.844208,0.00024657,2]
[327785271,1716477049734,-500.0,0.00024657,2]
[327785272,1716477049744,-500.0,0.00024657,2]
[327785273,1716477049752,-500.0,0.00024657,2]
[327785274,1716477049762,-500.0,0.00024657,2]
[327785275,1716477049771,-500.0,0.00024657,2]
[327785276,1716477049780,-500.0,0.00024657,2]
[327785277,1716477049789,-500.0,0.00024657,2]
[327785278,1716477049799,-500.92251927,0.00024657,2]
[327785279,1716477049808,-503.77862277,0.00024657,2]
[327785280,1716477049818,-500.0,0.00024657,2]
[327785281,1716477049827,-500.0,0.00024657,2]
[327785282,1716477049836,-500.0,0.00024657,2]
[327785283,1716477049846,-500.0,0.00024657,2]
[327785284,1716477049855,-500.0,0.00024657,2]
[327785285,1716477049865,-500.0,0.00024657,2]
[327785286,1716477049874,-4509.21,0.00024657,2]
[327785287,1716477049883,-500.0,0.00024657,2]
[327785288,1716477049892,-500.0,0.00024657,2]
[327785289,1716477049901,-500.0,0.00024657,2]
[327785290,1716477049912,-500.0,0.00024657,2]
[327785291,1716477049922,-500.0,0.00024657,2]
[327785292,1716477049931,-986.02,0.00024657,2]
[327785293,1716477049940,-504.87823661,0.00024657,2]
[327785294,1716477049950,-9790.19,0.00024657,2]
[327785295,1716477049959,-151.0,0.00024657,2]
[327785296,1716477049967,-500.0,0.00024657,2]
[327785297,1716477049977,-500.0,0.00024657,2]
[327785298,1716477049986,-151.450604,0.00024657,2]
[327785299,1716477049996,-151.0,0.00024657,2]
[327785301,1716477050005,-151.0,0.00024657,2]
[327785302,1716477050107,-151.0,0.00024657,2]
[327785303,1716477050118,-529.59,0.00024657,2]
[327785304,1716477050127,-151.0,0.00024657,2]
[327785305,1716477050136,-162.193588,0.00024657,2]
[327785306,1716477050146,-1231.81,0.00024657,2]
[327785307,1716477050155,-514.85,0.00024657,2]
[327785309,1716477050164,-255.801652,0.00024657,2]
[327785310,1716477050173,-255.801652,0.00024657,2]
[327785311,1716477050184,-255.801652,0.00024657,2]
[327785312,1716477050194,-255.801652,0.00024657,2]
[327785313,1716477050203,-255.801652,0.00024657,2]
[327785314,1716477050213,-255.801652,0.00024657,2]
[327785315,1716477050222,-255.801652,0.00024657,2]
[327785317,1716477050231,-1111.41,0.00024657,2]
[327785318,1716477050240,-500.0,0.00024657,2]
[327785319,1716477050250,-255.801652,0.00024657,2]
[327785320,1716477050259,-3370.27,0.00024657,2]
[327785321,1716477050269,-500.0,0.00024657,2]
[327785322,1716477050278,-255.801652,0.00024657,2]
[327785324,1716477050288,-622.76,0.00024657,2]
[327785325,1716477050297,-255.801652,0.00024657,2]
[327785326,1716477050306,-505.52959155,0.00024657,2]
[327785327,1716477050315,-255.801652,0.00024657,2]
[327785328,1716477050324,-255.801652,0.00024657,2]
[327785329,1716477050334,-255.801652,0.00024657,2]
[327785330,1716477050343,-255.801652,0.00024657,2]
[327785331,1716477050352,-255.801652,0.00024657,2]
[327785333,1716477050362,-255.801652,0.00024657,2]
[327785334,1716477050371,-500.0,0.00024657,2]
[327785335,1716477050381,-151.0,0.00024657,2]
[327785336,1716477050391,-255.801652,0.00024657,2]
[327785337,1716477050400,-151.0,0.00024657,2]
[327785338,1716477050413,-255.801652,0.00024657,2]
[327785340,1716477050422,-151.0,0.00024657,2]
[327785341,1716477050431,-151.0,0.00024657,2]
[327785342,1716477050441,-159.473604,0.00024657,2]
[327785343,1716477050450,-500.0,0.00024657,2]
[327785344,1716477050459,-500.0,0.00024657,2]
[327785345,1716477050468,-806.74,0.00024657,2]
[327785346,1716477050477,-500.0,0.00024657,2]
[327785348,1716477050487,-500.0,0.00024657,2]
[327785349,1716477050496,-217.17624105,0.00024657,2]
[327785350,1716477050506,-693.01,0.00024657,2]
[327785351,1716477050515,-5767.17,0.00024657,2]
[327785352,1716477050524,-1105.56,0.00024657,2]
[327785353,1716477050533,-689.27,0.00024657,2]
[327785354,1716477050544,-500.0,0.00024657,2]
[327785356,1716477050558,-500.0,0.00024657,2]
[327785357,1716477050568,-503.65390313,0.00024657,2]
[327785358,1716477050578,-247.36695975,0.00024657,2]
[327785359,1716477050589,-507.1200031,0.00024657,2]
[327785360,1716477050599,-1365.007282,0.00024657,2]
[327785361,1716477050610,-1365.007282,0.00024657,2]
[327785362,1716477050620,-1365.007282,0.00024657,2]
[327785364,1716477050633,-1365.007282,0.00024657,2]
[327785365,1716477050643,-500.0,0.00024657,2]
[327785366,1716477050653,-500.0,0.00024657,2]
[327785367,1716477050673,-1365.007282,0.00024657,2]
[327785368,1716477050683,-1365.007282,0.00024657,2]
[327785369,1716477050693,-1365.007282,0.00024657,2]
[327785370,1716477050703,-1365.007282,0.00024657,2]
[327785371,1716477050714,-1365.007282,0.00024657,2]
[327785372,1716477050724,-775.29,0.00024657,2]
[327785373,1716477050733,-840.75,0.00024657,2]
[327785374,1716477050743,-1365.007282,0.00024657,2]
[327785376,1716477050754,-1365.007282,0.00024657,2]
[327785377,1716477050766,-1365.007282,0.00024657,2]
[327785378,1716477050777,-500.0,0.00024657,2]
[327785379,1716477050787,-500.0,0.00024657,2]
[327785380,1716477050797,-1365.007282,0.00024657,2]
[327785381,1716477050808,-1365.007282,0.00024657,2]
[327785383,1716477050819,-1365.007282,0.00024657,2]
[327785384,1716477050830,-500.0,0.00024657,2]
[327785385,1716477050840,-1365.007282,0.00024657,2]
[327785386,1716477050850,-1365.007282,0.00024657,2]
[327785387,1716477050860,-1365.00728029,0.00024657,2]
[327785388,1716477050870,-500.0,0.00024657,2]
[327785389,1716477050880,-26928.24,0.00024657,2]
[327785391,1716477050890,-500.0,0.00024657,2]
[327785392,1716477050900,-3880.73,0.00024657,2]
[327785393,1716477050918,-557.45,0.00024657,2]
[327785394,1716477050928,-503.70377357,0.00024657,2]
[327785395,1716477050937,-500.0,0.00024657,2]
[327785396,1716477050947,-500.0,0.00024657,2]
[327785397,1716477050957,-151.0,0.00024657,2]
[327785399,1716477050967,-506.99347811,0.00024657,2]
[327785400,1716477050977,-151.0,0.00024657,2]
[327785401,1716477050987,-154.810947,0.00024657,2]
[327785402,1716477050996,-500.0,0.00024657,2]
[327785403,1716477051006,-1345.96,0.00024657,2]
[327785404,1716477051016,-500.0,0.00024657,2]
[327785405,1716477051025,-3897.79,0.00024657,2]
[327785407,1716477051035,-2460.07,0.00024657,2]
[327785408,1716477051044,-2165.93,0.00024657,2]
[327785409,1716477051053,-875.802257,0.00024657,2]
[327785410,1716477051063,-500.0,0.00024657,2]
[327785411,1716477051073,-875.802257,0.00024657,2]
[327785412,1716477051082,-875.802257,0.00024657,2]
[327785413,1716477051092,-501.50749466,0.00024657,2]
[327785415,1716477051101,-875.802257,0.00024657,2]
[327785416,1716477051111,-875.802257,0.00024657,2]
[327785417,1716477051120,-875.802257,0.00024657,2]
[327785418,1716477051130,-875.802257,0.00024657,2]
[327785419,1716477051139,-875.802257,0.00024657,2]
[327785420,1716477051149,-875.802257,0.00024657,2]
[327785422,1716477051163,-500.0,0.00024657,2]
[327785423,1716477051172,-774.54,0.00024657,2]
[327785424,1716477051182,-875.802257,0.00024657,2]
[327785425,1716477051192,-875.802257,0.00024657,2]
[327785426,1716477051202,-875.802257,0.00024657,2]
[327785427,1716477051212,-875.802257,0.00024657,2]
[327785429,1716477051222,-875.802257,0.00024657,2]
[327785430,1716477051231,-1435.06,0.00024657,2]
[327785431,1716477051240,-875.802257,0.00024657,2]
[327785432,1716477051251,-875.802257,0.00024657,2]
[327785433,1716477051260,-875.802257,0.00024657,2]
[327785434,1716477051270,-1687.31,0.00024657,2]
[327785435,1716477051279,-875.802264,0.00024657,2]
[327785436,1716477051289,-4120.68,0.00024657,2]
[327785437,1716477051298,-500.0,0.00024657,2]
[327785438,1716477051307,-500.0,0.00024657,2]
[327785439,1716477051317,-844.88,0.00024657,2]
[327785440,1716477051327,-151.0,0.00024657,2]
[327785442,1716477051336,-151.0,0.00024657,2]
[327785443,1716477051346,-151.0,0.00024657,2]
[327785444,1716477051355,-289.15406,0.00024657,2]
[327785445,1716477051365,-500.0,0.00024657,2]
[327785446,1716477051375,-8601.3,0.00024657,2]
[327785447,1716477051386,-931.22,0.00024657,2]
[327785448,1716477051395,-570.08,0.00024657,2]
[327785450,1716477051410,-500.0,0.00024657,2]
[327785451,1716477051420,-500.0,0.00024657,2]
[327785452,1716477051429,-500.0,0.00024657,3]
[327785453,1716477051438,-500.0,0.00024657,2]
[327785454,1716477051449,-500.0,0.00024657,4]
[327785455,1716477051459,-500.0,0.00024657,5]
[327785457,1716477051469,-500.0,0.00024657,6]
[327785458,1716477051478,-3421.31,0.00024657,2]
[327785459,1716477051488,-500.0,0.00024657,7]
[327785460,1716477051498,-500.0,0.00024657,8]
[327785461,1716477051508,-500.0,0.00024657,9]
[327785462,1716477051517,-500.0,0.00024657,10]
[327785464,1716477051527,-500.0,0.00024657,2]
[327785465,1716477051536,-500.0,0.00024657,11]
[327785466,1716477051547,-500.0,0.00024657,12]
[327785467,1716477051558,-500.0,0.00024657,13]
[327785468,1716477051568,-500.0,0.00024657,14]
[327785469,1716477051578,-500.0,0.00024657,15]
[327785470,1716477051587,-500.0,0.00024657,16]
[327785471,1716477051596,-500.0,0.00024657,2]
[327785472,1716477051605,-500.0,0.00024657,17]
[327785474,1716477051615,-500.0,0.00024657,18]
[327785475,1716477051624,-500.0,0.00024657,19]
[327785476,1716477051637,-500.0,0.00024657,20]
[327785477,1716477051648,-500.0,0.00024657,21]
[327785478,1716477051664,-202.97115369,0.00024657,21]
[327785480,1716477051675,-500.0,0.00024657,2]
[327785481,1716477051684,-762.53,0.00024657,2]
[327785482,1716477051694,-281.00674628,0.00024657,2]
[327785483,1716477051703,-500.0,0.00024657,2]
[327785484,1716477051713,-151.0,0.00024657,2]
[327785485,1716477051723,-151.0,0.00024657,2]
[327785486,1716477051732,-151.0,0.00024657,2]
[327785488,1716477051742,-151.0,0.00024657,2]
[327785489,1716477051752,-819.12,0.00024657,2]
[327785490,1716477051762,-500.0,0.00024657,2]
[327785491,1716477051771,-4215.36,0.00024657,2]
[327785492,1716477051781,-502.84729581,0.00024657,2]
[327785493,1716477051791,-1949.52,0.00024657,2]
[327785494,1716477051800,-500.0,0.00024657,2]
[327785496,1716477051810,-507.26525052,0.00024657,2]
[327785497,1716477051819,-816.64,0.00024657,2]
[327785498,1716477051829,-500.02,0.00024657,2]
[327785499,1716477051838,-515.47723012,0.00024657,2]
[327785500,1716477051847,-503.30690531,0.00024657,2]
[327785501,1716477051857,-2960.23,0.00024657,2]
[327785502,1716477051866,-2634.04,0.00024657,2]
[327785503,1716477051876,-500.0,0.00024657,2]
[327785504,1716477051886,-500.0,0.00024657,2]
[327785506,1716477051980,-1726.34,0.00024657,2]
[327785507,1716477052001,-500.0,0.00024657,2]
[327785508,1716477052011,-1213.67,0.00024657,2]
[327785509,1716477052021,-1240.715576,0.00024657,2]
[327785511,1716477052030,-500.0,0.00024657,2]
[327785512,1716477052040,-1240.715576,0.00024657,2]
[327785513,1716477052049,-1240.715576,0.00024657,2]
[327785514,1716477052058,-1240.715576,0.00024657,2]
[327785515,1716477052068,-1240.715576,0.00024657,2]
[327785516,1716477052078,-500.0,0.00024657,2]
[327785518,1716477052087,-1240.715576,0.00024657,2]
[327785519,1716477052097,-854.41,0.00024657,2]
[327785520,1716477052106,-1240.715576,0.00024657,2]
[327785521,1716477052116,-1240.715576,0.00024657,2]
[327785522,1716477052125,-1240.715576,0.00024657,2]
[327785523,1716477052134,-1240.715576,0.00024657,2]
[327785524,1716477052144,-1240.715576,0.00024657,2]
[327785525,1716477052154,-1240.715576,0.00024657,2]
[327785526,1716477052167,-368.6744521,0.00024657,2]
[327785527,1716477052176,-1240.715576,0.00024657,2]
[327785528,1716477052185,-500.0,0.00024657,2]
[327785529,1716477052194,-1240.715576,0.00024657,2]
[327785531,1716477052203,-3484.49,0.00024657,2]
[327785532,1716477052212,-1240.715576,0.00024657,2]
[327785533,1716477052222,-1240.715576,0.00024657,2]
[327785534,1716477052231,-562.74,0.00024657,2]
[327785535,1716477052240,-1240.715576,0.00024657,2]
[327785536,1716477052249,-1517.66,0.00024657,2]
[327785537,1716477052259,-1240.715576,0.00024657,2]
[327785539,1716477052268,-758.22,0.00024657,2]
[327785540,1716477052277,-182.16980461,0.00024657,2]
[327785541,1716477052286,-1240.715576,0.00024657,2]
[327785542,1716477052296,-1240.715575,0.00024657,2]
[327785543,1716477052305,-500.0,0.00024657,2]
[327785544,1716477052314,-169.760438,0.00024657,2]
[327785545,1716477052323,-500.0,0.00024657,2]
[327785547,1716477052333,-503.55911925,0.00024657,2]
[327785548,1716477052342,-169.760438,0.00024657,2]
[327785549,1716477052352,-169.760438,0.00024657,2]
[327785550,1716477052361,-169.760438,0.00024657,2]
[327785551,1716477052370,-169.760438,0.00024657,2]
[327785552,1716477052379,-775.03,0.00024657,2]
[327785554,1716477052390,-169.760438,0.00024657,2]
[327785555,1716477052399,-169.760438,0.00024657,2]
[327785556,1716477052411,-169.760438,0.00024657,2]
[327785557,1716477052420,-169.760438,0.00024657,2]
[327785558,1716477052429,-169.760438,0.00024657,2]
[327785559,1716477052438,-169.760438,0.00024657,2]
[327785560,1716477052447,-169.760438,0.00024657,2]
[327785562,1716477052456,-169.760438,0.00024657,2]
[327785563,1716477052466,-169.760438,0.00024657,2]
[327785564,1716477052475,-500.0,0.00024657,2]
[327785565,1716477052485,-169.760438,0.00024657,2]
[327785566,1716477052494,-169.760438,0.00024657,2]
[327785567,1716477052503,-503.1011523,0.00024657,2]
[327785569,1716477052512,-169.760438,0.00024657,2]
[327785570,1716477052521,-169.760438,0.00024657,2]
[327785571,1716477052531,-169.760438,0.00024657,2]
[327785572,1716477052540,-500.0,0.00024657,2]
[327785573,1716477052551,-500.0,0.00024657,2]
[327785574,1716477052565,-508.07576792,0.00024657,2]
[327785576,1716477052575,-169.760429,0.00024657,2]
[327785577,1716477052584,-3696.23,0.00024657,2]
[327785578,1716477052594,-2798.73,0.00024657,2]
[327785579,1716477052603,-1049.63,0.00024657,2]
[327785580,1716477052612,-500.0,0.00024657,2]
[327785581,1716477052621,-500.0,0.00024657,2]
[327785582,1716477052631,-500.0,0.00024657,2]
[327785584,1716477052643,-500.0,0.00024657,2]
[327785585,1716477052654,-15937.36,0.00024657,2]
[327785586,1716477052664,-259.5602233,0.00024657,2]
[327785587,1716477052673,-500.0,0.00024657,2]
[327785588,1716477052683,-500.0,0.00024657,2]
[327785589,1716477052693,-533.50171849,0.00024657,2]
[327785591,1716477052702,-500.0,0.00024657,2]
[327785592,1716477052711,-1004.02,0.00024657,2]
[327785593,1716477052720,-500.0,0.00024657,2]
[327785594,1716477052730,-500.0,0.00024657,2]
[327785595,1716477052739,-662.44,0.00024657,2]
[327785596,1716477052749,-500.0,0.00024657,2]
[327785598,1716477052758,-500.0,0.00024657,2]
[327785599,1716477052767,-151.0,0.00024657,2]
[327785600,1716477052777,-151.0,0.00024657,2]
[327785601,1716477052787,-151.0,0.00024657,2]
[327785602,1716477052796,-5281.1,0.00024657,2]
[327785603,1716477052806,-1547.29,0.00024657,2]
[327785605,1716477052815,-151.0,0.00024657,2]
[327785606,1716477052824,-151.0,0.00024657,2]
[327785607,1716477052834,-151.0,0.00024657,2]
[327785608,1716477052843,-500.0,0.00024657,2]
[327785609,1716477052853,-151.0,0.00024657,2]
[327785610,1716477052862,-500.0,0.00024657,2]
[327785611,1716477052873,-151.0,0.00024657,2]
[327785612,1716477052882,-332.17905239,0.00024657,2]
[327785614,1716477052892,-151.0,0.00024657,2]
[327785615,1716477052901,-151.0,0.00024657,2]
[327785616,1716477052914,-230.744654,0.00024657,2]
[327785617,1716477052923,-500.0,0.00024657,2]
[327785618,1716477052932,-500.0,0.00024657,2]
[327785619,1716477052941,-500.0,0.00024657,2]
[327785621,1716477052950,-500.0,0.00024657,2]
[327785622,1716477052959,-1270.11,0.00024657,2]
[327785623,1716477052968,-500.0,0.00024657,2]
[327785624,1716477052978,-500.0,0.00024657,2]
[327785625,1716477052987,-500.0,0.00024657,2]
[327785626,1716477052997,-4302.8,0.00024657,2]
[327785627,1716477053006,-2138.0,0.00024657,2]
[327785629,1716477053015,-504.72426719,0.00024657,2]
[327785630,1716477053024,-500.0,0.00024657,2]
[327785631,1716477053034,-500.0,0.00024657,2]
[327785632,1716477053044,-12394.45,0.00024657,2]
[327785633,1716477053053,-12394.45,0.00024657,3]
[327785634,1716477053063,-12394.45,0.00024657,4]
[327785635,1716477053072,-639.7,0.00024657,2]
[327785637,1716477053081,-12394.45,0.00024657,5]
[327785638,1716477053091,-500.0,0.00024657,2]
[327785639,1716477053100,-12394.45,0.00024657,6]
[327785640,1716477053110,-12394.45,0.00024657,7]
[327785641,1716477053119,-12394.45,0.00024657,8]
[327785642,1716477053129,-12394.45,0.00024657,9]
[327785643,1716477053138,-12394.45,0.00024657,10]
[327785644,1716477053148,-12394.45,0.00024657,11]
[327785645,1716477053160,-500.0,0.00024657,2]
[327785646,1716477053169,-12394.45,0.00024657,12]
[327785647,1716477053178,-12394.45,0.00024657,13]
[327785648,1716477053187,-11184.87599556,0.00024657,14]
[327785660,1716477053876,-374.46644189,0.00021813,2]
[327785661,1716477053886,-1209.57400444,0.00024657,14]
[327785662,1716477053895,-500.53083041,0.00024657,2]
[327785663,1716477053905,-7915.42872326,0.00024657,15]
[327785766,1716477237939,-2090.39867159,0.00019893,2]
[327785767,1716477237970,-445.4199871,0.00019893,2]
[327785768,1716477238015,-2928.36268262,0.00019893,2]
[327785816,1716477707267,-2937.79541053,0.0002,10]
[327785817,1716477707325,-13206.92458947,0.00024653,11]
[327785819,1716477732193,-10654.43421828,0.00024653,11]
[327785820,1716477732263,-5490.28578172,0.00024657,11]
[327785829,1716477745482,-5350.98,0.00024657,12]
[327785830,1716477745535,-5350.98,0.00024657,13]
[327785831,1716477745587,-5350.98,0.00024657,14]